[Event "Titled Tuesday Blitz May 24 Early 2022"]
[White "Yang, Kaiqi"]
[Black "Nogerbek, Kazybek"]
[WhiteFideId "8604398"]
[BlackFideId "13710427"]
[WhiteElo "2373"]
[BlackElo "2441"]
[Result "0-1"]
[Round "03"]
[TimeControl "180+1"]
[Date "2022.05.24"]
[WhiteClock "0:00:13"]
[BlackClock "0:01:31"]

1. d4 {[%clk 0:03:00]}  Nf6 {[%clk 0:02:54]} 2. c4 {[%clk 0:03:00]}  e6 {[%clk 0:02:55]} 3. Bf4 {[%clk 0:03:00]}  b6 {[%clk 0:02:46]} 4. a3 {[%clk 0:03:00]}  Bb7 {[%clk 0:02:45]} 5. Nc3 {[%clk 0:03:00]}  d5 {[%clk 0:02:45]} 6. cxd5 {[%clk 0:02:59]}  Nxd5 {[%clk 0:02:46]} 7. Nxd5 {[%clk 0:02:59]}  Bxd5 {[%clk 0:02:46]} 8. e3 {[%clk 0:02:56]}  Bd6 {[%clk 0:02:46]} 9. Bg3 {[%clk 0:02:47]}  O-O {[%clk 0:02:46]} 10. Nf3 {[%clk 0:02:47]}  Nd7 {[%clk 0:02:45]} 11. Rc1 {[%clk 0:02:46]}  Rc8 {[%clk 0:02:44]} 12. Ba6 {[%clk 0:02:45]}  Ra8 {[%clk 0:02:39]} 13. b4 {[%clk 0:02:28]}  Bxg3 {[%clk 0:02:37]} 14. hxg3 {[%clk 0:02:28]}  c5 {[%clk 0:02:37]} 15. Bd3 {[%clk 0:02:03]}  h6 {[%clk 0:02:28]} 16. g4 {[%clk 0:01:40]}  Bxf3 {[%clk 0:02:23]} 17. Qxf3 {[%clk 0:01:40]}  cxd4 {[%clk 0:02:24]} 18. exd4 {[%clk 0:01:21]}  Qg5 {[%clk 0:02:23]} 19. Rc7 {[%clk 0:00:50]}  Nf6 {[%clk 0:02:21]} 20. O-O {[%clk 0:00:39]}  Rad8 {[%clk 0:02:19]} 21. Rd1 {[%clk 0:00:35]}  a5 {[%clk 0:02:13]} 22. bxa5 {[%clk 0:00:33]}  bxa5 {[%clk 0:02:14]} 23. Ra7 {[%clk 0:00:32]}  g6 {[%clk 0:02:12]} 24. Be2 {[%clk 0:00:30]}  Kg7 {[%clk 0:02:09]} 25. Qe3 {[%clk 0:00:29]}  Ra8 {[%clk 0:01:45]} 26. Rxa8 {[%clk 0:00:24]}  Rxa8 {[%clk 0:01:46]} 27. Rb1 {[%clk 0:00:24]}  Nd5 {[%clk 0:01:43]} 28. Qxg5 {[%clk 0:00:23]}  hxg5 {[%clk 0:01:44]} 29. Bf3 {[%clk 0:00:23]}  Rd8 {[%clk 0:01:43]} 30. Rb5 {[%clk 0:00:22]}  a4 {[%clk 0:01:40]} 31. Ra5 {[%clk 0:00:23]}  Nc3 {[%clk 0:01:39]} 32. Rxg5 {[%clk 0:00:23]}  Rxd4 {[%clk 0:01:40]} 33. Ra5 {[%clk 0:00:22]}  Nb1 {[%clk 0:01:38]} 34. Bc6 {[%clk 0:00:19]}  Rxg4 {[%clk 0:01:31]} 35. Bxa4 {[%clk 0:00:16]}  Nxa3 {[%clk 0:01:31]} 36. Be8 {[%clk 0:00:16]}  Nc4 {[%clk 0:01:30]} 37. Ra7 {[%clk 0:00:16]}  Nd6 {[%clk 0:01:30]} 38. Bc6 {[%clk 0:00:15]}  g5 {[%clk 0:01:30]} 39. g3 {[%clk 0:00:15]}  Rc4 {[%clk 0:01:30]} 40. Bf3 {[%clk 0:00:15]}  Kf6 {[%clk 0:01:30]} 41. Kg2 {[%clk 0:00:15]}  Ke5 {[%clk 0:01:31]} 42. Bh5 {[%clk 0:00:15]}  f5 {[%clk 0:01:31]} 43. Ra5+ {[%clk 0:00:15]}  Kf6 {[%clk 0:01:31]} 44. Be2 {[%clk 0:00:15]}  Rc2 {[%clk 0:01:31]} 45. Bd3 {[%clk 0:00:15]}  Rd2 {[%clk 0:01:30]} 46. Bb1 {[%clk 0:00:15]}  Nc4 {[%clk 0:01:30]} 47. Rc5 {[%clk 0:00:15]}  Ne3+ {[%clk 0:01:30]} 48. Kg1 {[%clk 0:00:14]}  Ng4 {[%clk 0:01:31]} 49. Ba2 {[%clk 0:00:13]}  Rxa2 {[%clk 0:01:31]} 0-1


[Site "https://www.chess.com"]

[Event "Titled Tuesday Blitz May 24 Early 2022"]
[White "Yuan, Qingyu"]
[Black "Zemlyanskii, Ivan"]
[WhiteFideId "8609772"]
[BlackFideId "24249971"]
[WhiteElo "2359"]
[BlackElo "1815"]
[Result "1-0"]
[Round "03"]
[TimeControl "180+1"]
[Date "2022.05.24"]
[WhiteClock "0:00:16"]
[BlackClock "0:00:11"]

1. e4 {[%clk 0:03:00]}  c5 {[%clk 0:02:58]} 2. Nf3 {[%clk 0:03:00]}  e6 {[%clk 0:02:57]} 3. b3 {[%clk 0:03:01]}  Nc6 {[%clk 0:02:56]} 4. Bb2 {[%clk 0:02:58]}  a6 {[%clk 0:02:55]} 5. g3 {[%clk 0:02:52]}  Qc7 {[%clk 0:02:51]} 6. Bg2 {[%clk 0:02:51]}  Nf6 {[%clk 0:02:49]} 7. e5 {[%clk 0:02:40]}  Nd5 {[%clk 0:02:36]} 8. Nc3 {[%clk 0:02:40]}  Nxc3 {[%clk 0:02:30]} 9. Bxc3 {[%clk 0:02:40]}  b5 {[%clk 0:02:29]} 10. O-O {[%clk 0:02:17]}  Bb7 {[%clk 0:02:29]} 11. a4 {[%clk 0:02:11]}  b4 {[%clk 0:02:24]} 12. Bb2 {[%clk 0:02:11]}  Be7 {[%clk 0:02:05]} 13. Re1 {[%clk 0:02:10]}  O-O {[%clk 0:02:04]} 14. h4 {[%clk 0:01:58]}  f6 {[%clk 0:01:55]} 15. d3 {[%clk 0:01:27]}  fxe5 {[%clk 0:01:48]} 16. Nxe5 {[%clk 0:01:20]}  Bf6 {[%clk 0:01:45]} 17. f4 {[%clk 0:01:06]}  Rae8 {[%clk 0:01:32]} 18. Qc1 {[%clk 0:01:01]}  Bxe5 {[%clk 0:01:14]} 19. Bxe5 {[%clk 0:00:55]}  d6 {[%clk 0:01:08]} 20. Bb2 {[%clk 0:00:53]}  Nd4 {[%clk 0:01:07]} 21. Bxd4 {[%clk 0:00:49]}  cxd4 {[%clk 0:01:08]} 22. Qd2 {[%clk 0:00:49]}  Bxg2 {[%clk 0:01:03]} 23. Qxg2 {[%clk 0:00:43]}  a5 {[%clk 0:01:01]} 24. Re2 {[%clk 0:00:37]}  Rf6 {[%clk 0:00:32]} 25. Rae1 {[%clk 0:00:37]}  h6 {[%clk 0:00:31]} 26. Kh2 {[%clk 0:00:37]}  Qc5 {[%clk 0:00:29]} 27. Qb7 {[%clk 0:00:35]}  Rf7 {[%clk 0:00:24]} 28. Qg2 {[%clk 0:00:32]}  Rf6 {[%clk 0:00:23]} 29. Re4 {[%clk 0:00:31]}  Rc8 {[%clk 0:00:18]} 30. R1e2 {[%clk 0:00:29]}  d5 {[%clk 0:00:18]} 31. Re5 {[%clk 0:00:28]}  Rc6 {[%clk 0:00:16]} 32. Qh3 {[%clk 0:00:25]}  Qc3 {[%clk 0:00:16]} 33. Qg4 {[%clk 0:00:19]}  Kh7 {[%clk 0:00:10]} 34. f5 {[%clk 0:00:17]}  exf5 {[%clk 0:00:10]} 35. Rxf5 {[%clk 0:00:17]}  Rce6 {[%clk 0:00:11]} 36. Ref2 {[%clk 0:00:16]}  Rxf5 {[%clk 0:00:10]} 37. Qxf5+ {[%clk 0:00:16]}  Rg6 {[%clk 0:00:11]} 38. h5 {[%clk 0:00:16]} 1-0


[Site "https://www.chess.com"]

[Event "Titled Tuesday Blitz May 24 Early 2022"]
[White "Zaksaite, Salomeja"]
[Black "Mikhalsky, Vladimir"]
[WhiteFideId "12801496"]
[BlackFideId "14144352"]
[WhiteElo "1953"]
[BlackElo "2301"]
[Result "0-1"]
[Round "03"]
[TimeControl "180+1"]
[Date "2022.05.25"]
[WhiteClock "0:00:01"]
[BlackClock "0:00:18"]

1. e4 {[%clk 0:02:57]}  g6 {[%clk 0:02:59]} 2. d4 {[%clk 0:02:56]}  Bg7 {[%clk 0:02:58]} 3. Nc3 {[%clk 0:02:56]}  d6 {[%clk 0:02:58]} 4. Bc4 {[%clk 0:02:54]}  a6 {[%clk 0:02:57]} 5. a4 {[%clk 0:02:52]}  b6 {[%clk 0:02:55]} 6. Nf3 {[%clk 0:02:49]}  e6 {[%clk 0:02:54]} 7. Qe2 {[%clk 0:02:47]}  Ne7 {[%clk 0:02:46]} 8. Bg5 {[%clk 0:02:47]}  h6 {[%clk 0:02:46]} 9. Be3 {[%clk 0:02:44]}  Bb7 {[%clk 0:02:45]} 10. h4 {[%clk 0:02:39]}  Nbc6 {[%clk 0:02:39]} 11. h5 {[%clk 0:02:35]}  g5 {[%clk 0:02:38]} 12. Rd1 {[%clk 0:02:23]}  Nb4 {[%clk 0:02:33]} 13. Bb3 {[%clk 0:02:04]}  Qd7 {[%clk 0:02:32]} 14. Nh2 {[%clk 0:02:02]}  O-O-O {[%clk 0:02:25]} 15. O-O {[%clk 0:01:20]}  f5 {[%clk 0:02:20]} 16. exf5 {[%clk 0:01:13]}  exf5 {[%clk 0:02:18]} 17. Bxg5 {[%clk 0:01:10]}  Ned5 {[%clk 0:02:05]} 18. Bxd8 {[%clk 0:01:07]}  Rxd8 {[%clk 0:01:53]} 19. Nxd5 {[%clk 0:01:04]}  Nxd5 {[%clk 0:01:53]} 20. Bxd5 {[%clk 0:00:57]}  Bxd5 {[%clk 0:01:52]} 21. Qxa6+ {[%clk 0:00:56]}  Bb7 {[%clk 0:01:52]} 22. Qd3 {[%clk 0:00:52]}  Rg8 {[%clk 0:01:40]} 23. d5 {[%clk 0:00:44]}  Qxa4 {[%clk 0:01:33]} 24. Qxf5+ {[%clk 0:00:41]}  Kb8 {[%clk 0:01:33]} 25. c3 {[%clk 0:00:28]}  Be5 {[%clk 0:00:58]} 26. Nf3 {[%clk 0:00:26]}  Bc8 {[%clk 0:00:52]} 27. Qf7 {[%clk 0:00:09]}  Qg4 {[%clk 0:00:52]} 28. Ne1 {[%clk 0:00:06]}  Qh4 {[%clk 0:00:44]} 29. f4 {[%clk 0:00:03]}  Rg7 {[%clk 0:00:33]} 30. Qf8 {[%clk 0:00:03]}  Bf6 {[%clk 0:00:23]} 31. Rd3 {[%clk 0:00:02]}  Re7 {[%clk 0:00:19]} 32. Rdf3 {[%clk 0:00:01]}  Rxe1 {[%clk 0:00:18]} 0-1


[Site "https://www.chess.com"]

[Event "Titled Tuesday Blitz May 24 Early 2022"]
[White "Zorbos"]
[Black "Preotu, Razvan"]
[BlackFideId "2613280"]
[WhiteElo "2507"]
[BlackElo "2407"]
[Result "0-1"]
[Round "03"]
[TimeControl "180+1"]
[Date "2022.05.25"]
[WhiteClock "0:00:24"]
[BlackClock "0:00:38"]

1. d4 {[%clk 0:02:55]}  Nf6 {[%clk 0:03:00]} 2. c4 {[%clk 0:02:55]}  g6 {[%clk 0:03:00]} 3. Nc3 {[%clk 0:02:55]}  d5 {[%clk 0:03:00]} 4. Nf3 {[%clk 0:02:53]}  Bg7 {[%clk 0:03:00]} 5. Qb3 {[%clk 0:02:53]}  dxc4 {[%clk 0:02:58]} 6. Qxc4 {[%clk 0:02:54]}  O-O {[%clk 0:02:58]} 7. e4 {[%clk 0:02:54]}  a6 {[%clk 0:02:58]} 8. e5 {[%clk 0:02:52]}  b5 {[%clk 0:02:57]} 9. Qb3 {[%clk 0:02:52]}  Nfd7 {[%clk 0:02:57]} 10. e6 {[%clk 0:02:53]}  fxe6 {[%clk 0:02:55]} 11. Be3 {[%clk 0:02:53]}  Nf6 {[%clk 0:02:51]} 12. h4 {[%clk 0:02:51]}  Nc6 {[%clk 0:02:42]} 13. Rd1 {[%clk 0:02:47]}  Kh8 {[%clk 0:02:22]} 14. Bd3 {[%clk 0:02:39]}  Qd6 {[%clk 0:02:13]} 15. h5 {[%clk 0:02:33]}  Nxh5 {[%clk 0:02:12]} 16. Rxh5 {[%clk 0:02:33]}  gxh5 {[%clk 0:02:12]} 17. a3 {[%clk 0:02:23]}  Rxf3 {[%clk 0:02:04]} 18. gxf3 {[%clk 0:02:23]}  Nxd4 {[%clk 0:01:58]} 19. Bxd4 {[%clk 0:02:21]}  Bxd4 {[%clk 0:01:59]} 20. Bb1 {[%clk 0:02:01]}  Qe5+ {[%clk 0:01:34]} 21. Ne2 {[%clk 0:01:52]}  c5 {[%clk 0:01:21]} 22. Qc2 {[%clk 0:01:47]}  Qg7 {[%clk 0:01:21]} 23. Nxd4 {[%clk 0:01:37]}  cxd4 {[%clk 0:01:22]} 24. Rxd4 {[%clk 0:01:37]}  Bb7 {[%clk 0:01:20]} 25. Rd7 {[%clk 0:01:28]}  Bxf3 {[%clk 0:00:59]} 26. Qc5 {[%clk 0:00:41]}  Qg1+ {[%clk 0:00:42]} 27. Kd2 {[%clk 0:00:40]}  Qd1+ {[%clk 0:00:42]} 28. Ke3 {[%clk 0:00:40]}  Qxd7 {[%clk 0:00:42]} 29. Qe5+ {[%clk 0:00:37]}  Kg8 {[%clk 0:00:42]} 30. Qg5+ {[%clk 0:00:35]}  Kf8 {[%clk 0:00:41]} 31. Qf4+ {[%clk 0:00:31]}  Ke8 {[%clk 0:00:40]} 32. Kxf3 {[%clk 0:00:24]}  Qd1+ {[%clk 0:00:38]} 33. Kg3 {[%clk 0:00:24]}  Qxb1 {[%clk 0:00:38]} 0-1


[Site "https://www.chess.com"]

[Event "Titled Tuesday Blitz May 24 Early 2022"]
[White "Agasarov, Benik"]
[Black "Borgaonkar Akshay"]
[WhiteFideId "13314823"]
[BlackFideId "25639110"]
[WhiteElo "2617"]
[BlackElo "1639"]
[Result "0-1"]
[Round "04"]
[TimeControl "180+1"]
[Date "2022.05.25"]
[WhiteClock "0:00:06"]
[BlackClock "0:00:39"]

1. e4 {[%clk 0:03:00]}  c5 {[%clk 0:02:59]} 2. Nf3 {[%clk 0:03:01]}  e6 {[%clk 0:02:59]} 3. d4 {[%clk 0:03:01]}  cxd4 {[%clk 0:02:56]} 4. Nxd4 {[%clk 0:03:01]}  Nc6 {[%clk 0:02:56]} 5. Nc3 {[%clk 0:03:01]}  Qc7 {[%clk 0:02:56]} 6. Be3 {[%clk 0:03:01]}  Nf6 {[%clk 0:02:55]} 7. Ndb5 {[%clk 0:02:58]}  Qb8 {[%clk 0:02:53]} 8. f4 {[%clk 0:02:44]}  a6 {[%clk 0:02:51]} 9. Nd4 {[%clk 0:02:43]}  Bb4 {[%clk 0:02:43]} 10. Qd3 {[%clk 0:02:27]}  d5 {[%clk 0:02:24]} 11. e5 {[%clk 0:02:25]}  Ne4 {[%clk 0:02:23]} 12. Bd2 {[%clk 0:02:23]}  Nxd2 {[%clk 0:02:18]} 13. Qxd2 {[%clk 0:02:21]}  Qa7 {[%clk 0:02:15]} 14. O-O-O {[%clk 0:02:17]}  Nxd4 {[%clk 0:02:11]} 15. Qxd4 {[%clk 0:02:17]}  Bc5 {[%clk 0:02:11]} 16. Qd3 {[%clk 0:02:14]}  Be3+ {[%clk 0:02:09]} 17. Kb1 {[%clk 0:02:13]}  Bxf4 {[%clk 0:02:09]} 18. g3 {[%clk 0:01:36]}  Bxe5 {[%clk 0:02:05]} 19. Nxd5 {[%clk 0:01:34]}  exd5 {[%clk 0:02:01]} 20. Qxd5 {[%clk 0:01:32]}  Bf6 {[%clk 0:01:15]} 21. Re1+ {[%clk 0:01:24]}  Be6 {[%clk 0:01:14]} 22. Rxe6+ {[%clk 0:01:23]}  fxe6 {[%clk 0:01:14]} 23. Qxe6+ {[%clk 0:01:24]}  Kf8 {[%clk 0:01:13]} 24. Qd6+ {[%clk 0:01:11]}  Be7 {[%clk 0:01:06]} 25. Qf4+ {[%clk 0:01:09]}  Ke8 {[%clk 0:01:05]} 26. Bg2 {[%clk 0:00:42]}  Rd8 {[%clk 0:01:01]} 27. Qa4+ {[%clk 0:00:39]}  b5 {[%clk 0:00:51]} 28. Bc6+ {[%clk 0:00:38]}  Kf8 {[%clk 0:00:51]} 29. Rf1+ {[%clk 0:00:26]}  Bf6 {[%clk 0:00:50]} 30. Bxb5 {[%clk 0:00:20]}  Qd4 {[%clk 0:00:42]} 31. Qa3+ {[%clk 0:00:17]}  Qd6 {[%clk 0:00:42]} 32. Qb3 {[%clk 0:00:06]}  Qd1+ {[%clk 0:00:39]} 0-1


[Site "https://www.chess.com"]

[Event "Titled Tuesday Blitz May 24 Early 2022"]
[White "Aggelis, Nikolaos"]
[Black "Bocharov, Dmitry"]
[WhiteFideId "4213220"]
[BlackFideId "4138716"]
[WhiteElo "2154"]
[BlackElo "2541"]
[Result "0-1"]
[Round "04"]
[TimeControl "180+1"]
[Date "2022.05.25"]
[WhiteClock "0:00:56"]
[BlackClock "0:01:12"]

1. d4 {[%clk 0:03:00]}  Nf6 {[%clk 0:02:58]} 2. g3 {[%clk 0:02:59]}  c5 {[%clk 0:02:54]} 3. Bg2 {[%clk 0:03:00]}  cxd4 {[%clk 0:02:54]} 4. Nf3 {[%clk 0:03:01]}  e5 {[%clk 0:02:49]} 5. O-O {[%clk 0:03:01]}  Nc6 {[%clk 0:02:48]} 6. c3 {[%clk 0:03:01]}  dxc3 {[%clk 0:02:48]} 7. Nxc3 {[%clk 0:03:02]}  d5 {[%clk 0:02:48]} 8. Bg5 {[%clk 0:03:02]}  d4 {[%clk 0:02:49]} 9. Ne4 {[%clk 0:03:01]}  Be7 {[%clk 0:02:49]} 10. Bxf6 {[%clk 0:02:58]}  Bxf6 {[%clk 0:02:49]} 11. Nc5 {[%clk 0:02:57]}  O-O {[%clk 0:02:45]} 12. Rc1 {[%clk 0:02:55]}  Rb8 {[%clk 0:02:39]} 13. Qb3 {[%clk 0:02:48]}  Be7 {[%clk 0:02:33]} 14. Rfd1 {[%clk 0:02:46]}  Bxc5 {[%clk 0:02:26]} 15. Rxc5 {[%clk 0:02:47]}  Be6 {[%clk 0:02:26]} 16. Qa4 {[%clk 0:02:43]}  f6 {[%clk 0:02:21]} 17. e3 {[%clk 0:02:42]}  Qb6 {[%clk 0:02:12]} 18. exd4 {[%clk 0:02:40]}  Rbd8 {[%clk 0:02:12]} 19. Rb5 {[%clk 0:02:29]}  Qa6 {[%clk 0:02:11]} 20. Qxa6 {[%clk 0:02:16]}  bxa6 {[%clk 0:02:11]} 21. Rc5 {[%clk 0:02:10]}  Nxd4 {[%clk 0:02:08]} 22. Nxd4 {[%clk 0:02:10]}  exd4 {[%clk 0:01:55]} 23. Ra5 {[%clk 0:01:56]}  Rd6 {[%clk 0:01:52]} 24. Bf1 {[%clk 0:01:56]}  Bg4 {[%clk 0:01:44]} 25. Bc4+ {[%clk 0:01:50]}  Kh8 {[%clk 0:01:43]} 26. Rd2 {[%clk 0:01:48]}  Rc8 {[%clk 0:01:42]} 27. b3 {[%clk 0:01:47]}  Rcc6 {[%clk 0:01:40]} 28. Kg2 {[%clk 0:01:42]}  g5 {[%clk 0:01:38]} 29. Rd5 {[%clk 0:01:36]}  Rxd5 {[%clk 0:01:36]} 30. Bxd5 {[%clk 0:01:37]}  Rd6 {[%clk 0:01:37]} 31. Bf3 {[%clk 0:01:33]}  Bf5 {[%clk 0:01:35]} 32. Be2 {[%clk 0:01:32]}  Kg7 {[%clk 0:01:30]} 33. Bd3 {[%clk 0:01:27]}  Bxd3 {[%clk 0:01:26]} 34. Rxd3 {[%clk 0:01:26]}  f5 {[%clk 0:01:27]} 35. Kf3 {[%clk 0:01:25]}  Kf6 {[%clk 0:01:27]} 36. Ke2 {[%clk 0:01:25]}  Ke5 {[%clk 0:01:26]} 37. Kd2 {[%clk 0:01:19]}  Rc6 {[%clk 0:01:25]} 38. h4 {[%clk 0:01:14]}  g4 {[%clk 0:01:25]} 39. Kd1 {[%clk 0:01:10]}  Rc3 {[%clk 0:01:20]} 40. Rd2 {[%clk 0:01:09]}  d3 {[%clk 0:01:20]} 41. Rb2 {[%clk 0:01:09]}  Ke4 {[%clk 0:01:19]} 42. b4 {[%clk 0:01:04]}  Rc2 {[%clk 0:01:17]} 43. Rb3 {[%clk 0:00:57]}  Rxf2 {[%clk 0:01:14]} 44. a4 {[%clk 0:00:57]}  f4 {[%clk 0:01:13]} 45. gxf4 {[%clk 0:00:57]}  g3 {[%clk 0:01:13]} 46. b5 {[%clk 0:00:56]}  g2 {[%clk 0:01:12]} 0-1


[Site "https://www.chess.com"]

[Event "Titled Tuesday Blitz May 24 Early 2022"]
[White "Antipov, Mikhail Al."]
[Black "Leschinsky, Gary"]
[WhiteFideId "4107012"]
[BlackFideId "30951321"]
[WhiteElo "2512"]
[BlackElo "1782"]
[Result "1-0"]
[Round "04"]
[TimeControl "180+1"]
[Date "2022.05.24"]
[WhiteClock "0:01:21"]
[BlackClock "0:00:42"]

1. e4 {[%clk 0:02:43]}  c5 {[%clk 0:02:59]} 2. Nf3 {[%clk 0:02:43]}  e6 {[%clk 0:02:59]} 3. b3 {[%clk 0:02:43]}  Nc6 {[%clk 0:02:58]} 4. Bb2 {[%clk 0:02:43]}  d5 {[%clk 0:02:58]} 5. Bb5 {[%clk 0:02:42]}  Nf6 {[%clk 0:02:45]} 6. e5 {[%clk 0:02:42]}  Nd7 {[%clk 0:02:43]} 7. Bxc6 {[%clk 0:02:43]}  bxc6 {[%clk 0:02:43]} 8. d3 {[%clk 0:02:43]}  Be7 {[%clk 0:02:41]} 9. O-O {[%clk 0:02:43]}  O-O {[%clk 0:02:42]} 10. Re1 {[%clk 0:02:42]}  f6 {[%clk 0:02:38]} 11. Nbd2 {[%clk 0:02:32]}  fxe5 {[%clk 0:02:15]} 12. Nxe5 {[%clk 0:02:30]}  Nxe5 {[%clk 0:02:13]} 13. Bxe5 {[%clk 0:02:31]}  Bd6 {[%clk 0:02:08]} 14. Qg4 {[%clk 0:02:16]}  Bxe5 {[%clk 0:01:59]} 15. Rxe5 {[%clk 0:02:17]}  Qf6 {[%clk 0:01:59]} 16. Nf3 {[%clk 0:02:17]}  Bd7 {[%clk 0:01:43]} 17. Rae1 {[%clk 0:02:15]}  Rae8 {[%clk 0:01:42]} 18. h4 {[%clk 0:01:55]}  Qf4 {[%clk 0:01:21]} 19. Qxf4 {[%clk 0:01:53]}  Rxf4 {[%clk 0:01:22]} 20. R5e2 {[%clk 0:01:53]}  Kf7 {[%clk 0:00:51]} 21. Ne5+ {[%clk 0:01:52]}  Ke7 {[%clk 0:00:51]} 22. g3 {[%clk 0:01:50]}  Rf6 {[%clk 0:00:49]} 23. Kg2 {[%clk 0:01:46]}  Kd6 {[%clk 0:00:49]} 24. h5 {[%clk 0:01:42]}  Ref8 {[%clk 0:00:48]} 25. f4 {[%clk 0:01:41]}  Be8 {[%clk 0:00:43]} 26. Ng4 {[%clk 0:01:19]}  Bxh5 {[%clk 0:00:42]} 27. Nxf6 {[%clk 0:01:19]}  Bxe2 {[%clk 0:00:42]} 28. Nxh7 {[%clk 0:01:20]}  Rh8 {[%clk 0:00:42]} 29. Ng5 {[%clk 0:01:21]}  Bg4 {[%clk 0:00:42]} 30. Nf7+ {[%clk 0:01:21]} 1-0


[Site "https://www.chess.com"]

[Event "Titled Tuesday Blitz May 24 Early 2022"]
[White "Avazkhonov, Alikhon"]
[Black "Jakubowski, Krzysztof"]
[WhiteFideId "14208504"]
[BlackFideId "1112848"]
[WhiteElo "1739"]
[BlackElo "2365"]
[Result "0-1"]
[Round "04"]
[TimeControl "180+1"]
[Date "2022.05.25"]
[WhiteClock "0:00:14"]
[BlackClock "0:02:20"]

1. e4 {[%clk 0:03:00]}  c5 {[%clk 0:02:58]} 2. Nc3 {[%clk 0:03:01]}  e6 {[%clk 0:02:57]} 3. Nge2 {[%clk 0:03:00]}  a6 {[%clk 0:02:56]} 4. g3 {[%clk 0:03:00]}  b5 {[%clk 0:02:55]} 5. Bg2 {[%clk 0:03:01]}  Bb7 {[%clk 0:02:55]} 6. O-O {[%clk 0:02:59]}  Nc6 {[%clk 0:02:55]} 7. d4 {[%clk 0:02:59]}  cxd4 {[%clk 0:02:55]} 8. Nxd4 {[%clk 0:03:00]}  Rc8 {[%clk 0:02:54]} 9. Be3 {[%clk 0:02:59]}  Nge7 {[%clk 0:02:50]} 10. f4 {[%clk 0:02:57]}  Nxd4 {[%clk 0:02:48]} 11. Qxd4 {[%clk 0:02:54]}  Nc6 {[%clk 0:02:48]} 12. Qd2 {[%clk 0:02:54]}  Na5 {[%clk 0:02:47]} 13. b3 {[%clk 0:02:29]}  Bb4 {[%clk 0:02:44]} 14. Bd4 {[%clk 0:02:28]}  Qc7 {[%clk 0:02:42]} 15. Nd5 {[%clk 0:01:53]}  Bxd2 {[%clk 0:02:40]} 16. Nxc7+ {[%clk 0:01:42]}  Rxc7 {[%clk 0:02:41]} 17. c3 {[%clk 0:00:49]}  Bxc3 {[%clk 0:02:37]} 18. Bb6 {[%clk 0:00:44]}  Rc6 {[%clk 0:02:36]} 19. Be3 {[%clk 0:00:20]}  Ke7 {[%clk 0:02:26]} 20. Rac1 {[%clk 0:00:19]}  Rhc8 {[%clk 0:02:25]} 21. e5 {[%clk 0:00:15]}  R6c7 {[%clk 0:02:23]} 22. Bb6 {[%clk 0:00:14]}  Bd4+ {[%clk 0:02:20]} 0-1


[Site "https://www.chess.com"]

[Event "Titled Tuesday Blitz May 24 Early 2022"]
[White "Barria Zuniga, Daniel"]
[Black "Fromm, Marius"]
[WhiteFideId "3400816"]
[BlackFideId "12993190"]
[WhiteElo "2414"]
[BlackElo "2507"]
[Result "1-0"]
[Round "04"]
[TimeControl "180+1"]
[Date "2022.05.25"]
[WhiteClock "0:01:01"]
[BlackClock "0:00:01"]

1. c4 {[%clk 0:03:00]}  c5 {[%clk 0:02:59]} 2. g3 {[%clk 0:03:00]}  Nc6 {[%clk 0:03:00]} 3. Bg2 {[%clk 0:03:01]}  g6 {[%clk 0:03:00]} 4. Nc3 {[%clk 0:03:01]}  Bg7 {[%clk 0:03:01]} 5. a3 {[%clk 0:03:01]}  d6 {[%clk 0:02:57]} 6. Rb1 {[%clk 0:02:59]}  a5 {[%clk 0:02:58]} 7. Nh3 {[%clk 0:02:56]}  h5 {[%clk 0:02:49]} 8. Nf4 {[%clk 0:02:54]}  h4 {[%clk 0:02:50]} 9. e3 {[%clk 0:02:50]}  g5 {[%clk 0:02:12]} 10. Nfe2 {[%clk 0:02:38]}  h3 {[%clk 0:01:54]} 11. Bxc6+ {[%clk 0:02:35]}  bxc6 {[%clk 0:01:54]} 12. Qa4 {[%clk 0:02:27]}  Bd7 {[%clk 0:01:42]} 13. O-O {[%clk 0:02:24]}  Nf6 {[%clk 0:01:39]} 14. f3 {[%clk 0:02:20]}  g4 {[%clk 0:01:35]} 15. f4 {[%clk 0:02:18]}  d5 {[%clk 0:01:21]} 16. d3 {[%clk 0:02:13]}  O-O {[%clk 0:00:34]} 17. e4 {[%clk 0:02:08]}  d4 {[%clk 0:00:23]} 18. Nd1 {[%clk 0:02:01]}  Nh5 {[%clk 0:00:19]} 19. Nf2 {[%clk 0:01:51]}  f5 {[%clk 0:00:18]} 20. Bd2 {[%clk 0:01:49]}  e6 {[%clk 0:00:16]} 21. e5 {[%clk 0:01:44]}  Qc7 {[%clk 0:00:12]} 22. Nc1 {[%clk 0:01:36]}  Rfb8 {[%clk 0:00:12]} 23. Nb3 {[%clk 0:01:32]}  Bf8 {[%clk 0:00:09]} 24. Nxa5 {[%clk 0:01:29]}  Ra6 {[%clk 0:00:05]} 25. b4 {[%clk 0:01:28]}  cxb4 {[%clk 0:00:04]} 26. axb4 {[%clk 0:01:29]}  c5 {[%clk 0:00:01]} 27. b5 {[%clk 0:01:28]}  Rba8 {[%clk 0:00:02]} 28. Ra1 {[%clk 0:01:20]}  Rb6 {[%clk 0:00:01]} 29. Qc2 {[%clk 0:01:16]}  Rbb8 {[%clk 0:00:01]} 30. Nd1 {[%clk 0:01:01]} 1-0


[Site "https://www.chess.com"]

[Event "Titled Tuesday Blitz May 24 Early 2022"]
[White "Bifulco, Michel"]
[Black "Johnson, Ben"]
[WhiteFideId "828580"]
[BlackFideId "2010917"]
[WhiteElo "2165"]
[BlackElo "2211"]
[Result "1-0"]
[Round "04"]
[TimeControl "180+1"]
[Date "2022.05.25"]
[WhiteClock "0:00:42"]
[BlackClock "0:00:01"]

1. d4 {[%clk 0:03:00]}  Nf6 {[%clk 0:02:49]} 2. Nc3 {[%clk 0:03:00]}  d5 {[%clk 0:02:48]} 3. Bf4 {[%clk 0:03:01]}  e6 {[%clk 0:02:47]} 4. Nb5 {[%clk 0:03:01]}  Na6 {[%clk 0:02:47]} 5. e3 {[%clk 0:03:01]}  Be7 {[%clk 0:02:41]} 6. Nf3 {[%clk 0:02:54]}  O-O {[%clk 0:02:39]} 7. Bd3 {[%clk 0:02:49]}  c6 {[%clk 0:02:34]} 8. Nc3 {[%clk 0:02:49]}  c5 {[%clk 0:02:22]} 9. a3 {[%clk 0:02:46]}  c4 {[%clk 0:02:20]} 10. Be2 {[%clk 0:02:47]}  Nc7 {[%clk 0:02:18]} 11. Ne5 {[%clk 0:02:47]}  Nd7 {[%clk 0:02:09]} 12. Nf3 {[%clk 0:02:32]}  b5 {[%clk 0:02:06]} 13. e4 {[%clk 0:02:31]}  b4 {[%clk 0:01:52]} 14. axb4 {[%clk 0:02:25]}  Bxb4 {[%clk 0:01:53]} 15. O-O {[%clk 0:02:25]}  Nb6 {[%clk 0:01:32]} 16. Na4 {[%clk 0:02:15]}  Nxa4 {[%clk 0:01:24]} 17. Rxa4 {[%clk 0:02:14]}  Bd6 {[%clk 0:01:25]} 18. e5 {[%clk 0:02:11]}  Be7 {[%clk 0:01:24]} 19. b3 {[%clk 0:02:08]}  Bd7 {[%clk 0:01:16]} 20. Ra2 {[%clk 0:02:03]}  Bb5 {[%clk 0:01:09]} 21. bxc4 {[%clk 0:02:03]}  dxc4 {[%clk 0:01:09]} 22. c3 {[%clk 0:02:01]}  Nd5 {[%clk 0:01:08]} 23. Bd2 {[%clk 0:01:54]}  h6 {[%clk 0:01:04]} 24. Qa1 {[%clk 0:01:53]}  a6 {[%clk 0:01:00]} 25. Rb1 {[%clk 0:01:47]}  Rc8 {[%clk 0:00:57]} 26. Be1 {[%clk 0:01:46]}  Bg5 {[%clk 0:00:54]} 27. g3 {[%clk 0:01:38]}  Be7 {[%clk 0:00:45]} 28. Nd2 {[%clk 0:01:37]}  f6 {[%clk 0:00:39]} 29. exf6 {[%clk 0:01:32]}  Bxf6 {[%clk 0:00:40]} 30. Ne4 {[%clk 0:01:29]}  e5 {[%clk 0:00:33]} 31. Bg4 {[%clk 0:01:16]}  Rc6 {[%clk 0:00:29]} 32. dxe5 {[%clk 0:01:04]}  Bxe5 {[%clk 0:00:29]} 33. Rd1 {[%clk 0:01:04]}  Rg6 {[%clk 0:00:15]} 34. Bh5 {[%clk 0:00:56]}  Re6 {[%clk 0:00:09]} 35. Rad2 {[%clk 0:00:53]}  Bc6 {[%clk 0:00:04]} 36. Nc5 {[%clk 0:00:51]}  Ref6 {[%clk 0:00:03]} 37. Qxa6 {[%clk 0:00:47]}  Ba8 {[%clk 0:00:01]} 38. Qxc4 {[%clk 0:00:43]}  Qd6 {[%clk 0:00:01]} 39. Rxd5 {[%clk 0:00:42]} 1-0


[Site "https://www.chess.com"]